bitfinex/quotes_ETHUSD_20240810
["timestamp","ask_amount","ask_price","bid_price","bid_amount"]
[1723263327775,3.8469,2599.5,2599.1,0.55]
[1723263327963,7.69344,2599.7,2599.1,0.55]
[1723263328369,3.84671,2599.7,2599.2,3.84729]
[1723263328675,14.98277,2599.9,2599.3,3.84718]
[1723263328876,11.13638,2599.9,2599.4,2.856]
[1723263329847,3.84608,2600.1,2599.5,3.84688]
[1723263330056,11.13577,2600.3,2599.8,2.306]
[1723263331188,3.84548,2600.5,2600.0,3.8461]
[1723263331399,0.60291908,2600.6,2600.1,3.84599]
[1723263332444,0.60291908,2600.6,2600.1,4.62290175]
[1723263332682,0.60291908,2600.6,2600.2,2.306]
[1723263333065,3.84542,2600.5,2600.2,2.306]
[1723263333270,3.84542,2600.5,2600.0,2.3829132]
[1723263333471,3.84542,2600.5,2600.1,0.55]
[1723263333882,0.60291908,2600.6,2600.1,0.55]
[1723263334080,0.60291908,2600.6,2600.1,4.39599]
[1723263334490,0.60291908,2600.6,2600.1,8.2419]
[1723263334663,0.60291908,2600.6,2600.3,3.8457]
[1723263334859,3.84514,2600.7,2600.1,4.39591]
[1723263335187,3.84514,2600.7,2600.2,0.79392888]
[1723263335366,3.84514,2600.7,2600.3,0.55]
[1723263335913,3.84497,2600.8,2600.4,2.306]
[1723263336691,11.73724306,2601.0,2600.4,6.15154]
[1723263336905,11.73724306,2601.0,2600.4,6.94785026]
[1723263337489,11.73724306,2601.0,2600.5,3.84537]
[1723263337895,7.89248306,2601.0,2600.5,3.84537]
[1723263338290,0.60248306,2601.0,2600.5,3.84537]
[1723263338757,4.44720306,2601.0,2600.4,3.04941618]
[1723263339089,3.84553,2600.5,2600.1,2.306]
[1723263339574,3.84553,2600.5,2600.2,0.55]
[1723263340611,7.69041,2600.7,2600.2,0.55]
[1723263340961,3.8452,2600.7,2600.2,0.55]
[1723263341300,3.8452,2600.7,2600.2,1.220198]
[1723263341521,3.8452,2600.7,2600.2,5.065968]
[1723263345518,3.84491,2600.9,2600.2,5.065938]
[1723263345709,3.845,2600.8,2600.2,8.911708]
[1723263346416,3.84513,2600.7,2600.2,5.065938]
[1723263346606,3.84513,2600.7,2600.2,4.39574]
[1723263347187,3.84491,2600.9,2600.3,6.2187]
[1723263347388,3.84491,2600.9,2600.4,0.55]
[1723263347589,3.84506,2600.8,2600.4,0.55]
[1723263348093,3.84506,2600.8,2600.3,2.373]
[1723263348094,3.84528,2600.6,2600.3,2.373]
[1723263348408,3.84529,2600.6,2600.3,2.373]
[1723263348609,7.69034,2600.7,2600.3,2.373]
[1723263348806,3.84512,2600.7,2600.3,2.373]
[1723263350934,3.84497,2600.8,2600.3,2.373]
[1723263351106,3.84515,2600.7,2600.3,2.373]
[1723263352202,3.8449,2600.9,2600.4,0.621885]
[1723263352417,3.84501,2600.8,2600.3,6.21862]
[1723263352619,3.84501,2600.8,2600.4,0.55]
[1723263353133,0.60248306,2601.0,2600.5,0.676862]
[1723263353628,3.84487,2600.9,2600.5,0.676862]
[1723263353930,3.84487,2600.9,2600.4,0.55]
[1723263354330,3.84487,2600.9,2600.4,0.62690285]
[1723263354531,3.84487,2600.9,2600.4,0.55]
[1723263354702,3.84487,2600.9,2600.4,0.62689615]
[1723263355037,3.84487,2600.9,2600.4,0.55]
[1723263355038,3.84498,2600.8,2600.4,0.55]
[1723263355210,3.84528,2600.6,2600.3,2.373]
[1723263355926,3.84524,2600.7,2600.3,2.373]
[1723263356124,7.69048,2600.7,2600.3,2.373]
[1723263356812,7.69046,2600.7,2600.3,2.373]
[1723263357542,3.84522,2600.7,2600.3,2.373]
[1723263357699,7.69041,2600.7,2600.3,2.328265]
[1723263357908,3.84519,2600.7,2600.3,2.328265]
[1723263358348,7.69043,2600.7,2600.3,2.328265]
[1723263358499,3.84519,2600.7,2600.3,2.328265]
[1723263358703,7.69038,2600.7,2600.3,2.328265]
[1723263358944,3.84527,2600.6,2600.3,2.328265]
[1723263360260,3.84519,2600.7,2600.3,2.328265]
[1723263360916,0.60248306,2601.0,2600.5,3.84532]
[1723263361146,0.60248306,2601.0,2600.7,2.373]
[1723263362205,3.8446,2601.1,2600.7,2.373]
[1723263363119,0.60241339,2601.2,2600.7,2.373]
[1723263363547,3.84429,2601.3,2600.7,2.373]
[1723263363783,7.68865,2601.3,2600.7,6.21811]
[1723263363988,3.84454,2601.1,2600.7,2.44989475]
[1723263364145,3.84454,2601.1,2600.7,2.373]
[1723263364538,7.68864,2601.3,2600.7,6.2181]
[1723263365451,3.84438,2601.2,2600.7,6.2181]
[1723263365652,12.28544688,2601.5,2600.8,0.07689578]
[1723263365970,4.44641688,2601.5,2600.9,4.39481]
[1723263366294,8.29047688,2601.5,2600.9,4.39472]
[1723263366993,3.84409,2601.4,2600.9,4.39472]
[1723263367162,8.29046688,2601.5,2601.0,2.3646]
[1723263367366,4.44641688,2601.5,2601.0,2.3646]
[1723263367548,3.84402,2601.5,2601.0,2.3646]
[1723263367982,3.84431,2601.3,2601.0,2.3646]
[1723263369389,3.8442,2601.4,2601.0,2.3646]
[1723263370314,3.84432,2601.3,2601.0,2.3646]
[1723263370507,3.84441,2601.2,2601.0,2.3646]
[1723263371363,3.84417,2601.4,2601.0,2.3646]
[1723263371504,7.68839,2601.4,2601.0,2.3646]
[1723263372510,3.84426,2601.3,2601.0,2.3646]
[1723263372911,3.84417,2601.4,2601.0,2.3646]
[1723263373725,3.84386,2601.6,2601.0,2.3646]
[1723263374037,3.84366,2601.7,2601.2,2.3646]
[1723263374243,3.84357,2601.8,2601.3,0.55]
[1723263374610,3.84386,2601.6,2601.3,0.55]
[1723263375138,3.84358,2601.8,2601.3,0.55]
[1723263375139,7.68716,2601.8,2601.3,0.55]
[1723263375323,3.84358,2601.8,2601.3,0.55]
[1723263375516,3.84357,2601.8,2601.3,4.39421]
[1723263375722,3.84357,2601.8,2601.3,0.55]
[1723263375961,3.84364,2601.7,2601.3,0.55]
[1723263376118,3.84357,2601.8,2601.3,0.55]
[1723263376323,3.84364,2601.7,2601.3,0.55]
[1723263377147,4.44571819,2601.9,2601.4,6.20861]
[1723263378070,8.28914819,2601.9,2601.4,6.20861]
[1723263378369,4.44571819,2601.9,2601.4,6.20861]
[1723263378568,8.28913819,2601.9,2601.4,6.20861]
[1723263378729,4.44571819,2601.9,2601.4,6.20861]
[1723263378927,8.28914819,2601.9,2601.4,6.20861]
[1723263379449,4.44571819,2601.9,2601.4,6.20861]
[1723263379651,8.28915819,2601.9,2601.4,6.20861]
[1723263380056,4.44571819,2601.9,2601.4,6.20861]
[1723263381268,4.44571819,2601.9,2601.4,6.884471]
[1723263381775,3.84354,2601.8,2601.4,3.040461]
[1723263381931,3.84354,2601.8,2601.4,2.3646]
[1723263382731,3.84365,2601.7,2601.4,2.3646]
[1723263383970,1.662,2601.7,2601.4,2.3646]
[1723263385457,1.662,2601.7,2601.0,3.84457]
[1723263385458,3.84437,2601.2,2600.6,3.84525]
[1723263385661,5.50661,2601.1,2600.6,0.07689664]
[1723263385844,3.84467,2601.0,2600.6,0.82931195]
[1723263386048,5.50654,2601.1,2600.6,0.82931195]
[1723263387268,5.50654,2601.1,2600.6,0.906102]
[1723263387615,1.662,2601.3,2600.9,6.22863]
[1723263387823,3.84398,2601.5,2600.9,6.22863]
[1723263388206,11.684439,2601.6,2601.0,3.84464]
[1723263388521,4.394419,2601.6,2601.0,3.84458]
[1723263388721,4.394419,2601.6,2600.9,2.44333701]
[1723263388901,3.84416,2601.4,2601.0,0.55]
[1723263389420,7.68837,2601.4,2601.0,0.55]
[1723263389807,3.84424,2601.3,2601.0,0.55]
[1723263390632,3.84446,2601.2,2601.0,0.55]
[1723263390844,3.8442,2601.4,2600.9,2.3839]
[1723263391413,7.68843,2601.4,2600.9,2.3839]
[1723263392719,7.68838,2601.4,2600.9,2.3839]
[1723263393643,3.84418,2601.4,2600.9,2.3839]
[1723263393893,3.84418,2601.4,2600.9,6.22861]
[1723263394634,3.84418,2601.4,2600.9,2.3839]
[1723263394832,7.68837,2601.4,2600.9,2.3839]
[1723263396015,7.68836,2601.4,2600.9,2.3839]
[1723263396338,3.84418,2601.4,2600.9,2.3839]
[1723263396505,3.84416,2601.4,2600.9,2.3839]
[1723263396942,7.68833,2601.4,2600.9,2.3839]
[1723263397666,3.84416,2601.4,2600.9,2.3839]
[1723263397813,3.84416,2601.4,2600.9,6.2286]
[1723263399245,4.394439,2601.6,2601.0,3.84467]
[1723263399451,0.550559,2601.6,2601.1,3.84451]
[1723263399749,3.84381,2601.6,2601.1,4.39451]
[1723263400046,7.68768,2601.6,2601.1,0.55]
[1723263400223,3.8438,2601.6,2601.1,0.55]
[1723263400411,3.8438,2601.6,2601.1,1.23553734]
[1723263400843,7.68766,2601.6,2601.1,1.23553734]
[1723263401050,3.8438,2601.6,2601.1,1.23553734]
[1723263402348,7.68767,2601.6,2601.1,1.23553734]
[1723263402570,3.8438,2601.6,2601.1,1.23553734]
[1723263403172,7.6877,2601.6,2601.1,1.23553734]
[1723263403372,7.6877,2601.6,2601.1,0.55]
[1723263403571,3.8438,2601.6,2601.1,0.55]
[1723263403960,7.68773,2601.6,2601.1,0.55]
[1723263404161,3.8438,2601.6,2601.1,0.55]
[1723263404383,3.84409,2601.4,2601.1,0.55]
[1723263405006,3.8438,2601.6,2601.1,0.55]
[1723263405580,0.47193173,2601.5,2601.1,0.55]
[1723263405782,3.8438,2601.6,2601.1,0.55]
[1723263405949,0.47179018,2601.5,2601.1,0.55]
[1723263406153,3.84401,2601.5,2601.1,0.55]
[1723263408480,3.84401,2601.5,2601.0,0.55]
[1723263408481,0.47181623,2601.4,2601.0,0.55]
[1723263408794,7.68804,2601.5,2601.0,4.47154346]
[1723263408962,3.84401,2601.5,2601.0,5.54157381]
[1723263409484,8.28972519,2601.7,2601.1,3.84451]
[1723263409810,1.662,2601.4,2601.0,5.46469035]
[1723263409968,1.662,2601.4,2601.0,9.38607375]
[1723263410290,1.662,2601.4,2601.1,1.17699738]
[1723263411106,0.60226519,2601.7,2601.3,3.84415]
[1723263411390,1.662,2601.7,2601.4,0.55]
[1723263411757,1.662,2601.7,2601.3,0.55]
[1723263412409,5.50572,2601.7,2601.3,0.55]
[1723263412582,1.662,2601.5,2601.3,0.55]
[1723263413891,1.662,2601.5,2601.2,2.2975]
[1723263414080,1.662,2601.3,2601.2,2.2975]
[1723263414588,1.662,2601.3,2601.0,2.2975]
[1723263414793,1.662,2601.3,2601.1,0.55]
[1723263423204,1.662,2601.3,2600.7,6.31744]
[1723263423407,1.662,2601.3,2600.8,0.55]
[1723263423721,1.662,2601.3,2600.8,4.39485]
[1723263423931,5.50631,2601.3,2600.8,4.39485]
[1723263424141,3.84448,2601.2,2600.8,0.55]
[1723263424752,3.84447,2601.2,2600.8,0.55]
[1723263427240,7.68893,2601.2,2600.8,0.55]
[1723263427438,1.662,2601.1,2600.8,0.55]
[1723263429843,1.662,2601.1,2600.8,5.52950752]
[1723263430147,1.662,2601.1,2600.8,1.68462752]
[1723263435832,1.662,2601.3,2600.8,5.52951752]
[1723263436040,1.662,2601.2,2600.8,4.39489]
[1723263438246,1.662,2601.2,2600.8,4.39487]
[1723263438612,1.662,2601.2,2600.8,8.23975]
[1723263439152,1.662,2601.2,2600.8,4.39487]
[1723263439325,1.662,2601.2,2600.8,4.39486]
[1723263439847,3.84388,2601.6,2600.9,3.84482]
[1723263440021,1.662,2601.5,2601.2,2.4724]
[1723263440621,2.425,2601.7,2601.3,0.55]
[1723263440622,1.662,2601.7,2601.3,0.55]
[1723263440823,3.84351,2601.8,2601.3,0.55]
[1723263440824,1.662,2601.5,2601.3,0.55]
[1723263441029,3.84425,2601.3,2600.9,2.4724]
[1723263441257,1.662,2601.3,2601.0,0.55]
[1723263446453,1.662,2601.3,2601.0,4.39459]
[1723263446892,1.662,2601.3,2601.0,0.55]
[1723263447601,3.84388,2601.6,2601.1,3.84451]
[1723263447806,1.662,2601.4,2601.1,3.84443]
[1723263448303,2.4021,2601.7,2601.1,3.84447]
[1723263448602,7.29,2601.9,2601.5,3.84382]
[1723263448792,8.952,2601.9,2601.5,3.84382]
[1723263450194,8.952,2601.9,2601.4,3.84398]
[1723263450414,1.662,2601.9,2601.5,0.55]
[1723263450728,2.26423715,2602.1,2601.5,1.67901566]
[1723263450885,2.26423715,2602.1,2601.6,3.8437]
[1723263452095,2.26423715,2602.1,2601.7,6.67792]
[1723263452302,1.662,2601.9,2601.7,0.55]
[1723263452629,1.662,2601.9,2601.6,0.55]
[1723263455584,1.662,2601.9,2601.6,4.39377]
[1723263455810,1.662,2601.9,2601.6,0.55]
[1723263456826,1.662,2601.9,2601.6,4.39376]
[1723263460422,1.662,2601.9,2601.6,4.3937]
[1723263465440,1.662,2601.9,2601.6,4.39369]
[1723263465640,0.60223715,2602.1,2601.6,4.39369]
[1723263465641,2.26423715,2602.1,2601.6,8.2374]
[1723263466146,2.26423715,2602.1,2601.6,4.39369]
[1723263467450,6.10728715,2602.1,2601.6,4.39369]
[1723263467646,0.60223715,2602.1,2601.8,3.84336]
[1723263467825,0.60223715,2602.1,2601.9,6.89284]
[1723263468141,0.60223715,2602.1,2602.0,3.84319]
[1723263468304,1.662,2602.4,2602.0,4.39319]
[1723263468508,1.662,2602.4,2602.0,3.84319]
[1723263468710,1.662,2602.4,2602.1,0.55]
[1723263469145,2.4161,2602.5,2602.1,0.55]
[1723263469530,4.44433123,2602.7,2602.1,4.39291]
[1723263469531,0.60208123,2602.7,2602.1,4.39291]
[1723263469734,4.44424123,2602.7,2602.1,5.47415772]
[1723263469912,0.60208123,2602.7,2602.2,3.91965174]
[1723263470111,0.60208123,2602.7,2602.3,3.0496]
[1723263470437,0.60208123,2602.7,2602.3,6.89233]
[1723263471443,0.60208123,2602.7,2602.4,3.84258]
[1723263471747,0.60208123,2602.7,2602.5,3.84244]
[1723263471951,1.662,2602.9,2602.6,0.55]
[1723263472247,3.84205,2602.8,2602.6,0.55]
[1723263472546,3.84276,2602.3,2601.7,3.84354]
[1723263472764,3.84313,2602.1,2601.6,2.4996]
[1723263472909,3.84334,2601.9,2601.4,2.4996]
[1723263473114,1.662,2601.8,2601.4,2.4996]
[1723263473953,1.662,2601.8,2601.4,6.978053]
[1723263474859,1.662,2601.8,2601.5,0.55]
[1723263475414,1.662,2601.8,2601.4,0.55]
[1723263476060,1.662,2601.8,2601.4,4.39405]
[1723263476256,1.662,2602.0,2601.4,4.39405]
[1723263476600,5.50526,2602.0,2601.4,5.467828]
[1723263478181,3.84313,2602.1,2601.5,3.84383]
[1723263478345,3.84313,2602.1,2601.6,4.39378]
[1723263478528,3.84313,2602.1,2601.6,3.84378]
[1723263479446,4.0781,2602.4,2601.9,3.84332]
[1723263481338,4.0781,2602.4,2602.0,3.84316]
[1723263481597,1.662,2602.4,2602.0,6.28851]
[1723263481733,1.662,2602.4,2601.8,6.28878]
[1723263481938,1.662,2602.4,2601.9,4.39325]
[1723263482448,1.662,2602.4,2602.0,3.84313]
[1723263482864,1.662,2602.4,2602.1,3.84301]
[1723263484676,7.29,2602.7,2602.3,3.84264]
[1723263484883,7.82065,2602.9,2602.4,0.384264]
[1723263485475,7.82065,2602.9,2602.3,7.68531]
[1723263485779,7.82065,2602.9,2602.2,2.4454]
[1723263485780,3.9787,2602.9,2602.5,3.84238]
[1723263486175,3.84209,2602.8,2602.3,3.84268]
[1723263486478,3.84209,2602.8,2602.4,0.55]
[1723263487171,3.9787,2602.9,2602.4,0.58307507]
[1723263487373,1.662,2602.9,2602.4,0.58307507]
[1723263487686,1.662,2602.9,2602.5,3.84237]
[1723263488057,1.662,2602.9,2602.6,2.4454]
[1723263488255,2.3167,2603.1,2602.6,3.51672151]
[1723263488499,4.44349681,2603.2,2602.7,4.39202]
[1723263488500,2.26399681,2603.2,2602.7,4.39202]
[1723263488806,1.662,2602.8,2602.2,2.4454]
[1723263488980,1.662,2602.8,2602.3,0.55]
[1723263488981,5.50411,2602.8,2602.3,0.55]
[1723263489295,2.3167,2602.7,2602.3,0.55]
[1723263489658,6.15889,2602.7,2602.3,0.55]
[1723263490868,2.3167,2602.7,2602.3,0.55]
[1723263491080,6.15887,2602.7,2602.3,0.55]
[1723263492787,6.15887,2602.7,2602.0,3.8431]
[1723263492788,1.662,2602.6,2602.0,3.8431]
[1723263492998,5.50438,2602.6,2602.0,3.8431]
[1723263493209,3.84246,2602.5,2602.0,3.8431]
[1723263493419,3.84246,2602.5,2601.8,4.69310358]
[1723263493712,1.662,2602.4,2601.8,4.69310358]
[1723263493890,2.3167,2602.7,2601.7,2.4454]
[1723263493891,5.505,2602.2,2601.7,2.4454]
[1723263494201,5.505,2602.2,2601.6,3.8437]
[1723263494407,5.505,2602.2,2601.6,4.47261]
[1723263494568,5.505,2602.2,2601.6,8.31631]
[1723263494776,9.34797,2602.2,2601.6,4.47261]
[1723263495108,5.50498,2602.2,2601.7,3.84355]
[1723263495394,2.3167,2602.3,2601.8,4.39345]
[1723263495596,2.3167,2602.3,2601.9,3.84326]
[1723263497904,2.3167,2602.3,2601.8,4.39341]
[1723263498201,6.15946,2602.3,2601.8,4.39341]
[1723263499131,7.6862,2602.1,2601.8,0.55]
[1723263499299,7.68619,2602.1,2601.6,0.55]
[1723263499467,3.84307,2602.1,2601.6,0.55]
[1723263500176,3.84307,2602.1,2601.6,5.462103]
[1723263500380,3.84307,2602.1,2601.6,9.305873]
[1723263500779,1.662,2602.2,2601.7,3.84362]
[1723263500967,1.662,2602.2,2601.8,0.55]
[1723263501467,5.50492,2602.2,2601.8,0.55]
[1723263501999,5.50492,2602.2,2601.7,4.39363]
[1723263502198,5.50492,2602.2,2601.7,5.5687353]
[1723263503996,1.662,2602.2,2601.7,5.5687353]
[1723263505691,5.5049,2602.2,2601.7,1.7251053]
[1723263506522,5.5049,2602.2,2601.7,0.55]
[1723263506949,3.84366,2601.7,2601.2,6.32446]
[1723263507091,1.662,2601.8,2601.2,6.32446]
[1723263507284,5.50557,2601.8,2601.2,10.16876]
[1723263507597,1.662,2601.8,2601.3,3.8442]
[1723263508314,3.9193,2602.2,2601.7,3.84359]
[1723263508926,6.10022,2602.2,2601.7,3.84359]
[1723263509233,2.2573,2602.2,2601.7,3.84359]
[1723263510104,2.2573,2602.2,2601.8,0.55]
[1723263511798,5.50483,2602.3,2601.9,2.4802]
[1723263513327,3.84212,2602.8,2601.9,2.4802]
[1723263513494,3.9193,2602.7,2602.3,3.84273]
[1723263513693,1.662,2602.7,2602.3,3.84273]
[1723263515835,3.8421,2602.8,2602.3,3.84273]
[1723263516137,3.8421,2602.8,2602.2,6.323]
[1723263516336,2.2573,2602.5,2602.3,0.55]
[1723263516652,2.2573,2602.5,2602.0,4.39307]
[1723263517349,2.2573,2602.7,2602.2,3.84288]
[1723263517513,2.2573,2602.7,2602.3,0.55]
[1723263517702,7.68417,2602.8,2602.3,6.87294]
[1723263517703,3.84207,2602.8,2602.3,6.87294]
[1723263517908,6.09905,2603.0,2602.4,3.84248]
[1723263518110,6.09905,2603.0,2602.5,0.55]
[1723263518310,6.09905,2603.0,2602.5,4.39245]
[1723263518548,4.44347681,2603.2,2602.6,3.8423]
[1723263518737,4.44347681,2603.2,2602.7,4.39216]
[1723263518918,4.44347681,2603.2,2602.7,6.87236]
[1723263519329,0.60199681,2603.2,2602.7,6.87236]
[1723263520146,0.60199681,2603.2,2602.8,3.84196]
[1723263521339,9.5473,2603.3,2602.8,3.84196]
[1723263521553,9.5473,2603.3,2602.9,3.84185]
[1723263521708,3.02690646,2603.5,2603.0,4.39169]
[1723263522147,3.02690646,2603.5,2603.0,0.55]
[1723263522310,3.84125,2603.4,2602.9,0.55]
[1723263522507,3.84125,2603.4,2602.9,5.12098429]
[1723263522812,3.84122,2603.4,2602.9,1.27914429]
[1723263523012,3.84128,2603.3,2602.9,0.55]
[1723263523506,3.84122,2603.4,2602.9,0.55]
[1723263524124,3.84122,2603.4,2602.9,4.39186]
[1723263524439,3.84122,2603.4,2602.9,4.468688]
[1723263524742,3.84122,2603.4,2603.0,0.87299009]
[1723263524951,3.985,2603.3,2603.1,0.55]
[1723263529348,3.985,2603.3,2603.1,4.39155]
[1723263530247,3.985,2603.3,2603.1,0.55]
[1723263530815,3.985,2603.3,2603.2,2.3966]
[1723263531150,0.60190646,2603.5,2603.2,4.09685301]
[1723263531332,0.60190646,2603.5,2603.3,4.46797717]
[1723263531536,3.985,2603.6,2603.3,4.46797717]
[1723263531846,3.985,2603.6,2603.3,4.39116]
[1723263532424,3.985,2603.6,2603.3,8.23235]
[1723263532745,3.985,2603.6,2603.4,1.062895]
[1723263532947,3.985,2603.6,2603.5,0.55]
[1723263535638,3.985,2603.9,2603.5,4.39094]
[1723263535948,3.985,2603.9,2603.5,4.3909]
[1723263536255,3.985,2603.9,2603.6,0.55306081]
[1723263538248,3.84065,2603.8,2603.4,1.062895]
[1723263539044,3.84063,2603.8,2603.4,1.062895]
[1723263539854,3.84072,2603.7,2603.4,1.062895]
[1723263540025,3.84092,2603.6,2603.2,2.3966]
[1723263540229,3.84092,2603.6,2603.3,0.55]
[1723263540639,3.84072,2603.7,2603.3,0.55]
[1723263542335,3.84072,2603.7,2603.3,1.612949]
[1723263543241,3.84087,2603.6,2603.3,1.612949]
[1723263543754,1.659,2603.4,2603.3,1.612949]
[1723263546748,3.84049,2603.9,2603.4,2.3345]
[1723263546961,1.659,2603.5,2603.4,2.3345]
[1723263547265,1.659,2603.5,2603.4,3.01474811]
[1723263547559,1.659,2603.5,2603.4,1.23024811]
[1723263550032,1.659,2603.5,2603.4,0.55]
[1723263550238,1.659,2603.5,2603.3,0.55]
[1723263550461,1.659,2603.4,2603.3,0.55]
[1723263551250,1.659,2603.4,2603.3,1.60673]
[1723263556282,1.659,2603.4,2603.3,5.448]
[1723263566194,1.659,2603.4,2603.3,1.60673]
[1723263566392,1.659,2603.4,2603.3,0.55]
[1723263568504,1.659,2603.4,2603.3,4.39127]
[1723263572605,1.659,2603.4,2603.3,0.55]
[1723263575204,1.659,2603.4,2603.3,4.39127]
[1723263575708,1.659,2603.4,2603.3,0.55]
[1723263576006,1.659,2603.4,2603.3,1.222583]
[1723263577517,1.659,2603.4,2603.3,5.063853]
[1723263578506,2.3364,2604.0,2603.3,1.29940249]
[1723263578856,1.659,2603.6,2603.5,3.84098]
[1723263579056,1.659,2603.6,2603.5,4.39098]
[1723263579711,1.659,2603.6,2603.5,8.23196]
[1723263579911,1.659,2603.6,2603.5,9.055156]
[1723263580839,4.44181789,2604.2,2603.7,3.84068]
[1723263581017,4.44181789,2604.2,2603.9,3.84025]
[1723263581018,0.60176789,2604.2,2603.9,3.84025]
[1723263581219,0.60176789,2604.2,2604.0,0.55]
[1723263581813,2.4043,2604.4,2604.0,4.39017]
[1723263583035,6.24398,2604.4,2604.0,0.55]
[1723263583342,1.659,2604.1,2603.8,0.55]
[1723263583521,1.659,2603.9,2603.8,0.55]
[1723263585343,2.4533,2604.6,2604.0,6.22271]
[1723263585544,9.29274,2604.6,2604.1,0.55]
[1723263585730,1.659,2604.2,2604.1,0.55]
[1723263587616,1.659,2604.2,2604.1,4.39009]
[1723263587816,1.659,2604.2,2604.1,5.45137]
[1723263588338,1.659,2604.2,2604.1,1.61128]
[1723263589615,4.1123,2604.2,2603.6,6.22333]
[1723263589831,10.13334,2604.2,2603.7,0.55]
[1723263590017,6.29325,2604.2,2603.7,0.55]
[1723263590218,10.13328,2604.2,2603.7,0.55]
[1723263591534,1.659,2603.8,2603.7,0.55]
[1723263591743,1.659,2603.8,2603.6,0.55]
[1723263591951,1.659,2603.7,2603.6,0.55]
[1723263592340,1.659,2603.7,2603.5,4.39094]
[1723263592514,1.659,2603.6,2603.5,4.39094]
[1723263593025,1.659,2603.6,2603.4,3.84103]
[1723263593231,1.659,2603.6,2603.5,0.384103]
[1723263594357,1.659,2603.6,2603.5,4.775083]
[1723263597323,2.4533,2604.1,2603.7,3.8406]
[1723263597532,3.83975,2604.4,2603.8,4.3905]
[1723263597773,1.659,2603.9,2603.8,4.3905]
[1723263598728,1.659,2603.9,2603.8,0.55]
[1723263600757,1.659,2603.9,2603.8,4.39054]
[1723263601431,1.659,2603.9,2603.8,8.23108]
[1723263601630,1.659,2603.9,2603.8,9.292448]
[1723263602447,1.659,2604.1,2604.0,3.84022]
[1723263602761,1.659,2604.1,2604.0,4.39022]
[1723263603239,1.659,2604.1,2604.0,8.23046]
[1723263603569,1.659,2604.1,2604.0,9.1596428]
[1723263608594,3.06910675,2604.9,2604.2,2.4877]
[1723263608895,1.659,2604.8,2604.7,3.83919]
[1723263609054,1.659,2604.8,2604.7,5.157058]
[1723263609260,0.05,2605.2,2604.9,3.83877]
[1723263609469,0.05,2605.2,2605.0,0.55]
[1723263609790,1.659,2605.1,2605.0,0.55]
[1723263609952,1.659,2605.1,2605.0,4.38877]
[1723263611182,1.659,2605.1,2605.0,0.55]
[1723263611651,1.659,2605.1,2604.8,4.38902]
[1723263611851,1.659,2604.9,2604.8,4.38902]
[1723263612252,1.659,2604.9,2604.8,5.460605]
[1723263612684,1.659,2604.9,2604.8,9.299665]
[1723263615281,1.659,2605.1,2604.9,3.83886]
[1723263615469,1.659,2605.1,2605.0,0.55]
[1723263615677,1.659,2605.1,2605.0,5.3737165]
[1723263616894,1.659,2605.1,2605.0,10.71524]
[1723263617200,0.05,2605.2,2605.1,7.67724]
[1723263617402,0.05,2605.2,2605.1,8.22724]
[1723263618207,0.05,2605.2,2605.1,4.38862]
[1723263620579,0.05,2605.2,2605.1,0.55]
[1723263620767,0.05,2605.2,2605.1,5.076257]
[1723263620967,0.05,2605.2,2605.1,5.15301978]
[1723263621859,0.05,2605.2,2605.1,1.237637]
[1723263622302,0.05,2605.2,2605.1,0.687637]
[1723263622505,2.332,2605.2,2604.9,3.0]
[1723263622662,1.659,2605.0,2604.9,3.0]
[1723263622864,1.659,2605.0,2604.9,3.683896]
[1723263623291,1.709,2605.2,2605.0,6.16624]
[1723263623492,1.709,2605.2,2605.1,0.55]
[1723263624724,1.709,2605.2,2605.1,4.38862]
[1723263624885,1.709,2605.2,2605.1,1.3572516]
[1723263625797,1.709,2605.2,2605.1,5.1958716]
[1723263626524,0.05,2605.2,2605.1,5.1958716]
[1723263626679,0.05,2605.2,2605.1,9.1112549]
[1723263626887,0.05,2605.2,2605.1,11.4387549]
[1723263627545,0.05,2605.2,2605.1,14.4387549]
[1723263630008,0.05,2605.2,2605.1,18.2773749]
[1723263630866,0.05,2605.2,2605.1,22.1159949]
[1723263631008,1.659,2606.0,2605.9,3.83744]
[1723263631207,1.659,2606.0,2605.9,4.46023034]
[1723263631447,1.659,2606.0,2605.9,0.62279034]
[1723263631651,1.659,2606.0,2605.9,4.46023034]
[1723263632808,1.659,2606.0,2605.9,0.62279034]
[1723263633012,3.941,2606.0,2605.9,0.62279034]
[1723263633450,3.941,2606.0,2605.9,0.07279034]
[1723263633625,3.941,2606.0,2605.6,3.8378]
[1723263633809,2.282,2606.0,2605.7,0.61579988]
[1723263634040,6.11939,2606.0,2605.7,0.61579988]
[1723263634654,2.282,2606.0,2605.7,0.61579988]
[1723263637758,2.282,2606.0,2605.7,4.45338988]
[1723263637912,2.282,2606.0,2605.7,5.65926867]
[1723263641411,2.282,2606.0,2605.7,4.45338988]
[1723263643262,2.282,2606.0,2605.8,3.83751]
[1723263643440,6.3208,2606.2,2605.9,4.38744]
[1723263643766,6.3208,2606.2,2606.0,0.06531441]